[Event "CZE-ch 2020"]
[Site "Pilsen"]
[Date "2020.08.23"]
[Round "1.14"]
[White "Pychova, Nela"]
[Black "Sorm, Daniel"]
[Result "0-1"]
[ECO "A13"]
[WhiteElo "2159"]
[BlackElo "2343"]
[Annotator "ChessBase"]
[PlyCount "130"]
[EventDate "2020.08.23"]
[EventType "swiss"]
[EventCountry "CZE"]
[SourceTitle "playchess.com"]
[Source "ChessBase"]
[SourceQuality "1"]
[TimeControl "40/5400+30:1800+30"]

1. c4 {[%emt 0:00:00]} e6 {[%emt 0:00:19]} 2. Nf3 {[%emt 0:01:00]} d5 {[%emt 0:00:19]} 3. b3 {[%emt 0:02:30]} d4 {[%emt 0:01:12]} 4. Bb2 {[%emt 0:01:14]} c5 {[%emt 0:00:38]} 5. b4 {[%emt 0:01:42]} Nf6 {[%emt 0:08:51]} 6. d3 {[%emt 0:08:31]} b6 {[%emt 0:09:34]} 7. Nbd2 {[%emt 0:03:02]} Bd6 {[%emt 0:02:42]} 8. g3 {[%emt 0:01:18]} Bb7 {[%emt 0:02:06]} 9. Bg2 {[%emt 0:01:46]} O-O {[%emt 0:00:45]} 10. O-O {[%emt 0:00:16]} Nbd7 {[%emt 0:03:16]} 11. Rb1 {[%emt 0:03:38]} Qc7 {[%emt 0:04:56]} 12. Ba3 {[%emt 0:13:15]} e5 {[%emt 0:05:20]} 13. bxc5 {[%emt 0:04:10]} Nxc5 {[%emt 0:01:26]} 14. Bxc5 {[%emt 0:02:01]} Bxc5 {[%emt 0:00:21]} 15. Nb3 {[%emt 0:02:15]} Ba3 {[%emt 0:05:42]} 16. Na1 {[%emt 0:17:06]} Rfd8 {[%emt 0:04:32]} 17. Qa4 {[%emt 0:07:22]} Bc5 {[%emt 0:03:01]} 18. Nd2 {[%emt 0:04:12]} Bxg2 {[%emt 0:00:59]} 19. Kxg2 {[%emt 0:00:02]} Qb7+ {[%emt 0:00:15]} 20. Kg1 {[%emt 0:00:36]} e4 {[%emt 0:07:59]} 21. Nab3 {[%emt 0:08:32]} Qe7 {[%emt 0:01:11]} 22. Nxc5 {[%emt 0:06:22]} bxc5 {[%emt 0:00:50]} 23. Nxe4 {[%emt 0:00:25]} Nxe4 {[%emt 0:00:16]} 24. dxe4 {[%emt 0:00:04]} Qxe4 {[%emt 0:00:14]} 25. Rfe1 {[%emt 0:00:51]} h5 {[%emt 0:01:18]} 26. Qb3 {[%emt 0:03:09]} h4 {[%emt 0:01:30]} 27. Qd3 {[%emt 0:01:59]} Qg4 {[%emt 0:01:20]} 28. Rb7 {[%emt 0:01:38]} Re8 {[%emt 0:01:39]} 29. Kg2 {[%emt 0:03:16]} h3+ {[%emt 0:05:33]} 30. Kf1 {[%emt 0:00:45]} Qe6 {[%emt 0:00:19]} 31. Rb5 {[%emt 0:01:52]} Rac8 {[%emt 0:01:27]} 32. Rc1 {[%emt 0:00:37]} Rc7 {[%emt 0:01:04]} 33. Qf3 {[%emt 0:00:23]} a6 {[%emt 0:00:51]} 34. Rb2 {[%emt 0:00:32]} Rce7 {[%emt 0:01:17]} 35. Rd2 {[%emt 0:00:31]} Qh6 {[%emt 0:00:35]} 36. Rcd1 {[%emt 0:00:31]} Rb8 {[%emt 0:00:41]} 37. Qd3 {[%emt 0:00:33]} Reb7 {[%emt 0:01:33]} 38. e4 {[%emt 0:00:24]} dxe3 {[%emt 0:12:21]} 39. Qxe3 {[%emt 0:00:08]} Qxe3 {[%emt 0:04:55]} 40. fxe3 {[%emt 0:00:04]} Rb4 {[%emt 0:00:20]} 41. Rc2 {[%emt 0:02:06]} Ra4 {[%emt 0:08:09]} 42. Ke2 {[%emt 0:05:24]} Rbb4 {[%emt 0:01:09]} 43. Rd8+ {[%emt 0:04:46]} Kh7 {[%emt 0:00:03]} 44. Kd3 {[%emt 0:00:35]} f5 {[%emt 0:02:55]} 45. Rd5 {[%emt 0:01:38]} Ra3+ {[%emt 0:00:15]} 46. Ke2 {[%emt 0:01:33]} Rba4 {[%emt 0:01:55]} 47. Rxf5 {[%emt 0:07:34]} Rxa2 {[%emt 0:00:33]} 48. Rxa2 {[%emt 0:00:13]} Rxa2+ {[%emt 0:00:02]} 49. Kf1 {[%emt 0:01:06]} Rxh2 {[%emt 0:07:36]} 50. Rxc5 {[%emt 0:02:28]} Kg6 {[%emt 0:04:06]} 51. g4 {[%emt 0:04:04]} Ra2 {[%emt 0:09:07]} 52. Kg1 {[%emt 0:01:25]} a5 {[%emt 0:01:14]} 53. Rf5 {[%emt 0:03:42]} a4 {[%emt 0:00:31]} 54. c5 {[%emt 0:01:11]} Rc2 {[%emt 0:02:04]} 55. c6 {[%emt 0:00:25]} Rxc6 {[%emt 0:00:57]} 56. Kh2 {[%emt 0:00:44]} Ra6 {[%emt 0:00:46]} 57. Rf2 {[%emt 0:00:22]} a3 {[%emt 0:00:18]} 58. Ra2 {[%emt 0:00:06]} Kg5 {[%emt 0:01:33]} 59. Kxh3 {[%emt 0:00:14]} Ra4 {[%emt 0:00:03]} 60. Kg3 {[%emt 0:01:07]} Rxg4+ {[%emt 0:00:19]} 61. Kf3 {[%emt 0:00:12]} Ra4 {[%emt 0:00:12]} 62. e4 {[%emt 0:00:51]} Kf6 {[%emt 0:00:34]} 63. Ke3 {[%emt 0:00:25]} Ke5 {[%emt 0:00:33]} 64. Kd3 {[%emt 0:00:26]} g5 {[%emt 0:00:30]} 65. Kc2 {[%emt 0:00:44]} Kxe4 {[%emt 0:00:17]} 0-1

[Event "CZE-ch 2020"]
[Site "Pilsen"]
[Date "2020.08.23"]
[Round "1.15"]
[White "Cerveny, Petr"]
[Black "Nagy, Ladislav"]
[Result "1/2-1/2"]
[ECO "C86"]
[WhiteElo "2340"]
[BlackElo "2150"]
[Annotator "ChessBase"]
[PlyCount "130"]
[EventDate "2020.08.23"]
[EventType "swiss"]
[EventCountry "CZE"]
[SourceTitle "playchess.com"]
[Source "ChessBase"]
[SourceQuality "1"]
[TimeControl "40/5400+30:1800+30"]

1. e4 {[%emt 0:00:00]} e5 {[%emt 0:00:00]} 2. Nf3 {[%emt 0:00:00]} Nc6 {[%emt 0:00:00]} 3. Bb5 {[%emt 0:00:00]} a6 {[%emt 0:00:42]} 4. Ba4 {[%emt 0:00:00]} Nf6 {[%emt 0:00:40]} 5. Qe2 {[%emt 0:00:13]} Be7 {[%emt 0:03:42]} 6. O-O {[%emt 0:00:13]} b5 {[%emt 0:03:31]} 7. Bb3 {[%emt 0:00:04]} d6 {[%emt 0:01:54]} 8. c3 {[%emt 0:00:16]} Na5 {[%emt 0:07:23]} 9. Bc2 {[%emt 0:00:05]} c5 {[%emt 0:03:22]} 10. d4 {[%emt 0:04:34]} Qc7 {[%emt 0:04:38]} 11. d5 {[%emt 0:02:12]} c4 {[%emt 0:03:45]} 12. b4 {[%emt 0:00:42]} cxb3 {[%emt 0:03:18]} 13. axb3 {[%emt 0:00:05]} O-O {[%emt 0:05:13]} 14. Rd1 {[%emt 0:03:07]} Bd7 {[%emt 0:04:38]} 15. h3 {[%emt 0:12:48]} Bd8 {[%emt 0:05:38]} 16. Bd2 {[%emt 0:04:12]} Qc8 {[%emt 0:07:27]} 17. Be3 {[%emt 0:10:09]} h6 {[%emt 0:05:14]} 18. Ra3 {[%emt 0:12:27]} Qb8 {[%emt 0:05:27]} 19. Qd2 {[%emt 0:12:41]} Bc7 {[%emt 0:08:45]} 20. Bd3 {[%emt 0:04:50]} Rc8 {[%emt 0:02:23]} 21. Qa2 {[%emt 0:01:21]} Nb7 {[%emt 0:06:13]} 22. Rxa6 {[%emt 0:03:59]} Nc5 {[%emt 0:05:53]} 23. Bxc5 {[%emt 0:00:37]} dxc5 {[%emt 0:00:01]} 24. Nbd2 {[%emt 0:02:25]} Ne8 {[%emt 0:03:50]} 25. Ra1 {[%emt 0:00:32]} Rxa6 {[%emt 0:00:13]} 26. Qxa6 {[%emt 0:00:04]} f6 {[%emt 0:03:25]} 27. Qa7 {[%emt 0:04:14]} Qxa7 {[%emt 0:02:25]} 28. Rxa7 {[%emt 0:00:06]} Nd6 {[%emt 0:00:18]} 29. Be2 {[%emt 0:04:20]} Be8 {[%emt 0:02:30]} 30. Nh4 {[%emt 0:01:59]} h5 {[%emt 0:00:46]} 31. Nf5 {[%emt 0:03:01]} Nxf5 {[%emt 0:00:34]} 32. exf5 {[%emt 0:00:04]} Bb6 {[%emt 0:01:20]} 33. Ra6 {[%emt 0:00:21]} Rb8 {[%emt 0:00:28]} 34. c4 {[%emt 0:02:27]} b4 {[%emt 0:00:48]} 35. Ne4 {[%emt 0:00:52]} Bd7 {[%emt 0:00:29]} 36. Bd3 {[%emt 0:04:14]} Bc8 {[%emt 0:00:27]} 37. Ra1 {[%emt 0:00:08]} Kh7 {[%emt 0:00:36]} 38. h4 {[%emt 0:01:30]} Kh6 {[%emt 0:00:25]} 39. Nd6 {[%emt 0:01:53]} Bd7 {[%emt 0:00:33]} 40. g3 {[%emt 0:03:53]} Rf8 {[%emt 0:00:29]} 41. Ra6 {[%emt 0:30:52]} Rb8 {[%emt 0:30:28]} 42. Kg2 {[%emt 0:00:21]} Kh7 {[%emt 0:00:00]} 43. Be2 {[%emt 0:00:00]} Kh6 {[%emt 0:00:00]} 44. Bd3 {[%emt 0:00:00]} Kh7 {[%emt 0:00:00]} 45. Kf1 {[%emt 0:00:00]} Kg8 {[%emt 0:00:00]} 46. Ke2 {[%emt 0:00:00]} Kf8 {[%emt 0:00:00]} 47. Ne4 {[%emt 0:00:00]} Ke7 {[%emt 0:00:00]} 48. Nd2 {[%emt 0:00:00]} Kd8 {[%emt 0:00:00]} 49. Nf1 {[%emt 0:00:00]} Kc7 {[%emt 0:00:00]} 50. Be4 {[%emt 0:00:00]} Bc8 {[%emt 0:00:35]} 51. Ra1 {[%emt 0:00:00]} Kd6 {[%emt 0:01:08]} 52. Ne3 {[%emt 0:00:00]} Bd7 {[%emt 0:01:48]} 53. Kd3 {[%emt 0:00:00]} Be8 {[%emt 0:00:57]} 54. Bf3 {[%emt 0:00:00]} Kc7 {[%emt 0:01:54]} 55. Be4 {[%emt 0:00:00]} Kd6 {[%emt 0:00:07]} 56. Ke2 {[%emt 0:00:00]} Kd7 {[%emt 0:00:30]} 57. Kf3 {[%emt 0:00:00]} Kd6 {[%emt 0:00:24]} 58. Kg2 {[%emt 0:00:00]} Kc7 {[%emt 0:00:24]} 59. Kh2 {[%emt 0:01:25]} Kd6 {[%emt 0:00:08]} 60. Ra6 {[%emt 0:00:20]} Bd7 {[%emt 0:00:44]} 61. Bf3 {[%emt 0:00:50]} Be8 {[%emt 0:00:03]} 62. Bd1 {[%emt 0:00:20]} Bf7 {[%emt 0:00:42]} 63. Bf3 {[%emt 0:02:41]} Be8 {[%emt 0:00:04]} 64. Be4 {[%emt 0:00:29]} Bd7 {[%emt 0:00:26]} 65. Bf3 {[%emt 0:00:28]} Be8 1/2-1/2

[Event "CZE-ch 2020"]
[Site "Pilsen"]
[Date "2020.08.23"]
[Round "1.16"]
[White "Nemec, Jachym"]
[Black "Hurdzan, Tomas"]
[Result "0-1"]
[ECO "D85"]
[WhiteElo "2150"]
[BlackElo "2325"]
[Annotator "ChessBase"]
[PlyCount "76"]
[EventDate "2020.08.23"]
[EventType "swiss"]
[EventCountry "CZE"]
[SourceTitle "playchess.com"]
[Source "ChessBase"]
[SourceQuality "1"]
[TimeControl "40/5400+30:1800+30"]

1. d4 {[%emt 0:00:00]} Nf6 {[%emt 0:00:00]} 2. Nf3 {[%emt 0:00:04]} g6 {[%emt 0:00:09]} 3. c4 {[%emt 0:00:13]} Bg7 {[%emt 0:00:29]} 4. Nc3 {[%emt 0:00:20]} d5 {[%emt 0:00:44]} 5. cxd5 {[%emt 0:00:39]} Nxd5 {[%emt 0:00:09]} 6. e4 {[%emt 0:00:10]} Nxc3 {[%emt 0:00:10]} 7. bxc3 {[%emt 0:00:07]} c5 {[%emt 0:00:28]} 8. Rb1 {[%emt 0:01:44]} O-O {[%emt 0:02:11]} 9. Be2 {[%emt 0:00:10]} b6 {[%emt 0:01:11]} 10. O-O {[%emt 0:01:07]} Bb7 {[%emt 0:01:10]} 11. d5 {[%emt 0:01:35]} Bxc3 {[%emt 0:05:02]} 12. h4 {[%emt 0:00:19]} Nd7 {[%emt 0:02:41]} 13. Bf4 {[%emt 0:02:48]} Bg7 {[%emt 0:03:28]} 14. Bc4 {[%emt 0:02:45]} Nf6 {[%emt 0:07:12]} 15. Re1 {[%emt 0:03:13]} Qc8 {[%emt 0:11:37]} 16. Ne5 {[%emt 0:15:02]} Ba6 {[%emt 0:05:05]} 17. Nc6 {[%emt 0:05:36]} Re8 {[%emt 0:00:16]} 18. Bxa6 {[%emt 0:04:07]} Qxa6 {[%emt 0:00:06]} 19. Qb3 {[%emt 0:07:30]} Rac8 {[%emt 0:10:21]} 20. e5 {[%emt 0:12:35]} Nxd5 {[%emt 0:22:06]} 21. Qxd5 {[%emt 0:00:17]} Qa4 {[%emt 0:00:13]} 22. e6 {[%emt 0:04:53]} Qxf4 {[%emt 0:02:10]} 23. Qd7 {[%emt 0:13:09]} Qc7 {[%emt 0:10:04]} 24. Nxa7 {[%emt 0:01:21]} Red8 {[%emt 0:02:58]} 25. Nxc8 {[%emt 0:05:08]} Rxd7 {[%emt 0:00:11]} 26. exd7 {[%emt 0:00:07]} Qxd7 {[%emt 0:00:18]} 27. Nxe7+ {[%emt 0:00:10]} Kf8 {[%emt 0:02:33]} 28. Rxb6 {[%emt 0:03:00]} Bc3 {[%emt 0:03:01]} 29. Re4 {[%emt 0:02:06]} Kg7 {[%emt 0:02:01]} 30. Rb3 {[%emt 0:04:08]} Qd2 {[%emt 0:03:43]} 31. Kh2 {[%emt 0:06:42]} Be5+ {[%emt 0:02:45]} 32. Rxe5 {[%emt 0:02:32]} Qf4+ {[%emt 0:00:07]} 33. Kg1 {[%emt 0:00:35]} Qxe5 {[%emt 0:00:05]} 34. Re3 {[%emt 0:00:04]} Qa1+ {[%emt 0:00:12]} 35. Kh2 {[%emt 0:00:05]} Qxa2 {[%emt 0:00:06]} 36. Rf3 {[%emt 0:00:23]} Qe6 {[%emt 0:00:41]} 37. Re3 {[%emt 0:00:08]} Qd6+ {[%emt 0:00:22]} 38. Kg1 {[%emt 0:00:15]} c4 {[%emt 0:00:23]} 0-1

[Event "CZE-ch 2020"]
[Site "Pilsen"]
[Date "2020.08.23"]
[Round "1.17"]
[White "Simek, Petr"]
[Black "Taus, Martin"]
[Result "1/2-1/2"]
[ECO "A20"]
[WhiteElo "2324"]
[BlackElo "2142"]
[Annotator "ChessBase"]
[PlyCount "86"]
[EventDate "2020.08.23"]
[EventType "swiss"]
[EventCountry "CZE"]
[SourceTitle "playchess.com"]
[Source "ChessBase"]
[SourceQuality "1"]
[TimeControl "40/5400+30:1800+30"]

1. c4 {[%emt 0:00:00]} e5 {[%emt 0:00:38]} 2. g3 {[%emt 0:00:00]} d5 {[%emt 0:01:20]} 3. cxd5 {[%emt 0:00:00]} Qxd5 {[%emt 0:00:04]} 4. Nf3 {[%emt 0:00:13]} Nc6 {[%emt 0:02:08]} 5. Nc3 {[%emt 0:00:06]} Qd6 {[%emt 0:01:42]} 6. Bg2 {[%emt 0:00:57]} Nf6 {[%emt 0:00:42]} 7. O-O {[%emt 0:13:21]} Bf5 {[%emt 0:07:09]} 8. d3 {[%emt 0:28:35]} O-O-O {[%emt 0:09:58]} 9. Qa4 {[%emt 0:07:27]} Qb4 {[%emt 0:04:34]} 10. Ng5 {[%emt 0:07:56]} Qxa4 {[%emt 0:02:20]} 11. Nxa4 {[%emt 0:00:07]} Bg6 {[%emt 0:05:22]} 12. Bxc6 {[%emt 0:00:35]} bxc6 {[%emt 0:00:06]} 13. Be3 {[%emt 0:00:39]} Kb7 {[%emt 0:03:06]} 14. Rac1 {[%emt 0:01:32]} h6 {[%emt 0:03:41]} 15. Nf3 {[%emt 0:00:06]} e4 {[%emt 0:02:39]} 16. dxe4 {[%emt 0:13:58]} Bxe4 {[%emt 0:00:20]} 17. Ne5 {[%emt 0:00:15]} Bd5 {[%emt 0:01:00]} 18. Rfd1 {[%emt 0:03:57]} Bd6 {[%emt 0:04:54]} 19. Nc4 {[%emt 0:07:20]} Rhe8 {[%emt 0:10:31]} 20. Na5+ {[%emt 0:03:24]} Ka6 {[%emt 0:01:08]} 21. Nxc6 {[%emt 0:00:13]} Bxc6 {[%emt 0:00:11]} 22. Rxc6+ {[%emt 0:00:04]} Kb5 {[%emt 0:05:55]} 23. Rdc1 {[%emt 0:00:15]} Rxe3 {[%emt 0:05:28]} 24. fxe3 {[%emt 0:00:05]} Kxa4 {[%emt 0:00:05]} 25. Ra6+ {[%emt 0:08:48]} Kb5 {[%emt 0:01:41]} 26. Rxa7 {[%emt 0:01:14]} Bc5 {[%emt 0:01:07]} 27. Rxc5+ {[%emt 0:00:05]} Kxc5 {[%emt 0:00:12]} 28. Rxc7+ {[%emt 0:00:05]} Kd5 {[%emt 0:05:19]} 29. Rxf7 {[%emt 0:00:08]} Rd7 {[%emt 0:00:19]} 30. Rxd7+ {[%emt 0:00:31]} Nxd7 {[%emt 0:01:35]} 31. Kf2 {[%emt 0:00:18]} Ke4 {[%emt 0:06:08]} 32. a4 {[%emt 0:00:47]} Nc5 {[%emt 0:02:35]} 33. a5 {[%emt 0:00:12]} Na6 {[%emt 0:00:06]} 34. Kg2 {[%emt 0:02:33]} g5 {[%emt 0:01:23]} 35. h3 {[%emt 0:00:36]} h5 {[%emt 0:00:44]} 36. Kf2 {[%emt 0:00:24]} Nb4 {[%emt 0:04:39]} 37. Kg2 {[%emt 0:00:37]} Kxe3 {[%emt 0:01:21]} 38. Kf1 {[%emt 0:00:08]} Kd4 {[%emt 0:02:41]} 39. Kf2 {[%emt 0:00:11]} Ke4 {[%emt 0:00:16]} 40. Kg2 {[%emt 0:00:19]} Ke3 {[%emt 0:01:12]} 41. Kf1 {[%emt 0:30:05]} Kd4 {[%emt 0:32:44]} 42. Kf2 {[%emt 0:00:10]} Ke4 {[%emt 0:00:21]} 43. Kg2 {[%emt 0:00:07]} Ke3 {[%emt 0:00:00]} 1/2-1/2

[Event "CZE-ch 2020"]
[Site "Pilsen"]
[Date "2020.08.23"]
[Round "1.18"]
[White "Babula ml., Vlastimil"]
[Black "Mica, Marek"]
[Result "0-1"]
[ECO "C18"]
[WhiteElo "2138"]
[BlackElo "2315"]
[Annotator "ChessBase"]
[PlyCount "92"]
[EventDate "2020.08.23"]
[EventType "swiss"]
[EventCountry "CZE"]
[SourceTitle "playchess.com"]
[Source "ChessBase"]
[SourceQuality "1"]
[TimeControl "40/5400+30:1800+30"]

1. e4 {[%emt 0:00:00]} e6 {[%emt 0:00:00]} 2. d4 {[%emt 0:00:00]} d5 {[%emt 0:00:00]} 3. Nc3 {[%emt 0:00:23]} Bb4 {[%emt 0:00:14]} 4. e5 {[%emt 0:00:43]} c5 {[%emt 0:00:32]} 5. a3 {[%emt 0:01:02]} Bxc3+ {[%emt 0:00:11]} 6. bxc3 {[%emt 0:00:07]} Qc7 {[%emt 0:00:13]} 7. Bd2 {[%emt 0:06:08]} Ne7 {[%emt 0:02:32]} 8. Bd3 {[%emt 0:04:12]} b6 {[%emt 0:09:44]} 9. Qg4 {[%emt 0:06:39]} Nbc6 {[%emt 0:06:12]} 10. Nf3 {[%emt 0:04:50]} c4 {[%emt 0:11:55]} 11. Be2 {[%emt 0:02:05]} Ng6 {[%emt 0:05:07]} 12. Nh4 {[%emt 0:07:09]} Bd7 {[%emt 0:06:00]} 13. Nxg6 {[%emt 0:03:59]} hxg6 {[%emt 0:00:05]} 14. Bg5 {[%emt 0:00:21]} Na5 {[%emt 0:03:29]} 15. h4 {[%emt 0:02:31]} Ba4 {[%emt 0:02:18]} 16. Kd2 {[%emt 0:00:49]} Kd7 {[%emt 0:03:30]} 17. h5 {[%emt 0:02:28]} gxh5 {[%emt 0:01:06]} 18. Rxh5 {[%emt 0:00:27]} Kc6 {[%emt 0:13:41]} 19. Rah1 {[%emt 0:01:22]} Rxh5 {[%emt 0:00:39]} 20. Rxh5 {[%emt 0:01:00]} Qc8 {[%emt 0:05:06]} 21. Be7 {[%emt 0:09:10]} Qg8 {[%emt 0:04:02]} 22. Rg5 {[%emt 0:05:03]} g6 {[%emt 0:00:57]} 23. Qf4 {[%emt 0:01:27]} Re8 {[%emt 0:02:58]} 24. Qf6 {[%emt 0:01:11]} Kd7 {[%emt 0:03:15]} 25. Bb4 {[%emt 0:02:07]} Nb7 {[%emt 0:02:04]} 26. Bh5 {[%emt 0:03:42]} Qh7 {[%emt 0:01:51]} 27. Bf3 {[%emt 0:05:52]} a5 {[%emt 0:00:56]} 28. Bd6 {[%emt 0:01:21]} Nxd6 {[%emt 0:00:31]} 29. exd6 {[%emt 0:00:05]} Bc6 {[%emt 0:00:53]} 30. Kc1 {[%emt 0:02:35]} Kxd6 {[%emt 0:03:21]} 31. Rg3 {[%emt 0:01:00]} Qh6+ {[%emt 0:01:46]} 32. Kb2 {[%emt 0:03:39]} Qd2 {[%emt 0:02:09]} 33. Qe5+ {[%emt 0:05:01]} Kd7 {[%emt 0:00:22]} 34. Qe2 {[%emt 0:01:18]} Qxe2 {[%emt 0:00:29]} 35. Bxe2 {[%emt 0:00:05]} Rh8 {[%emt 0:00:06]} 36. Rh3 {[%emt 0:00:18]} Rxh3 {[%emt 0:00:29]} 37. gxh3 {[%emt 0:00:04]} f6 {[%emt 0:00:32]} 38. Kc1 {[%emt 0:01:43]} g5 {[%emt 0:00:52]} 39. Kd2 {[%emt 0:00:08]} e5 {[%emt 0:00:31]} 40. Ke3 {[%emt 0:01:16]} Kd6 {[%emt 0:00:34]} 41. Bg4 {[%emt 0:31:12]} Bd7 {[%emt 0:31:03]} 42. f3 {[%emt 0:00:26]} Bxg4 {[%emt 0:00:52]} 43. hxg4 {[%emt 0:00:18]} Kc6 {[%emt 0:00:08]} 44. a4 {[%emt 0:03:14]} b5 {[%emt 0:00:07]} 45. axb5+ {[%emt 0:00:05]} Kxb5 {[%emt 0:00:05]} 46. Kd2 {[%emt 0:00:04]} a4 {[%emt 0:00:16]} 0-1

[Event "CZE-ch 2020"]
[Site "Pilsen"]
[Date "2020.08.23"]
[Round "1.19"]
[White "Kozusek, Daniel"]
[Black "Bartos, Jan"]
[Result "1-0"]
[ECO "D02"]
[WhiteElo "2307"]
[BlackElo "2131"]
[Annotator "ChessBase"]
[PlyCount "81"]
[EventDate "2020.08.23"]
[EventType "swiss"]
[EventCountry "CZE"]
[SourceTitle "playchess.com"]
[Source "ChessBase"]
[SourceQuality "1"]
[TimeControl "40/5400+30:1800+30"]

1. d4 {[%emt 0:00:00]} d5 {[%emt 0:00:00]} 2. Nf3 {[%emt 0:01:58]} Nf6 {[%emt 0:00:05]} 3. c4 {[%emt 0:00:32]} e6 {[%emt 0:00:22]} 4. g3 {[%emt 0:00:05]} Bb4+ {[%emt 0:00:42]} 5. Bd2 {[%emt 0:00:08]} Be7 {[%emt 0:00:06]} 6. Bg2 {[%emt 0:00:06]} O-O {[%emt 0:00:14]} 7. Qc2 {[%emt 0:00:06]} Ne4 {[%emt 0:01:29]} 8. Nc3 {[%emt 0:06:18]} Nxc3 {[%emt 0:02:09]} 9. bxc3 {[%emt 0:01:46]} Nd7 {[%emt 0:05:45]} 10. cxd5 {[%emt 0:02:08]} exd5 {[%emt 0:00:13]} 11. c4 {[%emt 0:00:39]} dxc4 {[%emt 0:01:38]} 12. Qxc4 {[%emt 0:00:08]} c5 {[%emt 0:02:21]} 13. O-O {[%emt 0:04:43]} Nb6 {[%emt 0:08:01]} 14. Qd3 {[%emt 0:02:03]} cxd4 {[%emt 0:01:41]} 15. Rfd1 {[%emt 0:02:09]} Be6 {[%emt 0:07:05]} 16. Ba5 {[%emt 0:00:54]} Bd5 {[%emt 0:17:20]} 17. e4 {[%emt 0:03:36]} Bc6 {[%emt 0:07:35]} 18. Nxd4 {[%emt 0:12:23]} Bf6 {[%emt 0:01:40]} 19. f4 {[%emt 0:02:07]} Qe8 {[%emt 0:08:02]} 20. e5 {[%emt 0:07:16]} Bxg2 {[%emt 0:00:19]} 21. Kxg2 {[%emt 0:00:36]} Be7 {[%emt 0:00:16]} 22. Qf3 {[%emt 0:20:27]} Nc4 {[%emt 0:02:38]} 23. Bc3 {[%emt 0:00:05]} Rc8 {[%emt 0:02:08]} 24. Rd3 {[%emt 0:03:07]} b6 {[%emt 0:06:45]} 25. Nf5 {[%emt 0:01:48]} Bc5 {[%emt 0:03:01]} 26. Rad1 {[%emt 0:08:56]} Qc6 {[%emt 0:01:18]} 27. Qxc6 {[%emt 0:00:56]} Rxc6 {[%emt 0:00:05]} 28. Rd7 {[%emt 0:00:34]} b5 {[%emt 0:10:43]} 29. Kf3 {[%emt 0:00:23]} Ra6 {[%emt 0:02:09]} 30. Ba1 {[%emt 0:06:55]} Ra3+ {[%emt 0:00:46]} 31. Kg4 {[%emt 0:00:38]} Ne3+ {[%emt 0:02:17]} 32. Nxe3 {[%emt 0:00:36]} Rxe3 {[%emt 0:00:33]} 33. R7d5 {[%emt 0:00:57]} Bb6 {[%emt 0:00:28]} 34. Rxb5 {[%emt 0:00:13]} Rc8 {[%emt 0:01:32]} 35. Bd4 {[%emt 0:01:17]} Bxd4 {[%emt 0:00:59]} 36. Rxd4 {[%emt 0:00:05]} h5+ {[%emt 0:00:07]} 37. Kxh5 {[%emt 0:01:47]} Rc2 {[%emt 0:01:07]} 38. Rb8+ {[%emt 0:04:36]} Kh7 {[%emt 0:00:05]} 39. Rdd8 {[%emt 0:00:03]} Rxh2+ {[%emt 0:02:10]} 40. Kg4 {[%emt 0:00:05]} Rf2 {[%emt 0:02:16]} 41. f5 {[%emt 0:30:31]} 1-0

[Event "CZE-ch 2020"]
[Site "Pilsen"]
[Date "2020.08.23"]
[Round "1.20"]
[White "Folk, Petr"]
[Black "Orsag, Milan"]
[Result "0-1"]
[ECO "B46"]
[WhiteElo "2122"]
[BlackElo "2300"]
[Annotator "ChessBase"]
[PlyCount "100"]
[EventDate "2020.08.23"]
[EventType "swiss"]
[EventCountry "CZE"]
[SourceTitle "playchess.com"]
[Source "ChessBase"]
[SourceQuality "1"]
[TimeControl "40/5400+30:1800+30"]

1. e4 {[%emt 0:00:00]} c5 {[%emt 0:00:00]} 2. Nf3 {[%emt 0:00:00]} e6 {[%emt 0:00:00]} 3. Nc3 {[%emt 0:00:08]} a6 {[%emt 0:00:24]} 4. d4 {[%emt 0:00:15]} cxd4 {[%emt 0:00:10]} 5. Nxd4 {[%emt 0:00:03]} Nc6 {[%emt 0:00:38]} 6. Nxc6 {[%emt 0:00:31]} bxc6 {[%emt 0:00:23]} 7. Bd3 {[%emt 0:00:16]} d5 {[%emt 0:01:05]} 8. O-O {[%emt 0:00:23]} Nf6 {[%emt 0:00:24]} 9. Re1 {[%emt 0:02:52]} Be7 {[%emt 0:00:15]} 10. e5 {[%emt 0:03:04]} Nd7 {[%emt 0:00:16]} 11. Qg4 {[%emt 0:00:23]} Kf8 {[%emt 0:00:50]} 12. Na4 {[%emt 0:08:57]} h5 {[%emt 0:05:06]} 13. Qe2 {[%emt 0:02:59]} Bb7 {[%emt 0:05:45]} 14. b3 {[%emt 0:10:25]} c5 {[%emt 0:03:35]} 15. Ba3 {[%emt 0:07:27]} Qc7 {[%emt 0:22:31]} 16. c4 {[%emt 0:03:46]} d4 {[%emt 0:00:26]} 17. Rad1 {[%emt 0:12:27]} g6 {[%emt 0:03:16]} 18. Be4 {[%emt 0:03:02]} Rb8 {[%emt 0:07:57]} 19. Bxb7 {[%emt 0:01:14]} Rxb7 {[%emt 0:01:02]} 20. Rd3 {[%emt 0:01:54]} h4 {[%emt 0:01:17]} 21. Qe4 {[%emt 0:05:33]} Rh5 {[%emt 0:02:40]} 22. f4 {[%emt 0:00:38]} Rb8 {[%emt 0:01:57]} 23. Rh3 {[%emt 0:01:54]} Nb6 {[%emt 0:09:02]} 24. g4 {[%emt 0:09:25]} Rh8 {[%emt 0:02:47]} 25. Nb2 {[%emt 0:00:43]} a5 {[%emt 0:02:38]} 26. Nd3 {[%emt 0:02:27]} a4 {[%emt 0:00:21]} 27. Rf1 {[%emt 0:03:02]} axb3 {[%emt 0:02:31]} 28. f5 {[%emt 0:03:53]} gxf5 {[%emt 0:01:12]} 29. gxf5 {[%emt 0:00:07]} Rg8+ {[%emt 0:00:25]} 30. Kh1 {[%emt 0:00:11]} Nxc4 {[%emt 0:06:02]} 31. f6 {[%emt 0:02:49]} Nxa3 {[%emt 0:03:56]} 32. fxe7+ {[%emt 0:00:37]} Qxe7 {[%emt 0:01:56]} 33. axb3 {[%emt 0:00:35]} c4 {[%emt 0:09:45]} 34. bxc4 {[%emt 0:02:02]} Nxc4 {[%emt 0:00:49]} 35. Qxh4 {[%emt 0:05:51]} Qxh4 {[%emt 0:03:09]} 36. Rxh4 {[%emt 0:00:01]} Ne3 {[%emt 0:00:06]} 37. Rc1 {[%emt 0:03:18]} Nf5 {[%emt 0:01:15]} 38. Rh7 {[%emt 0:00:23]} Ne7 {[%emt 0:01:13]} 39. Rf1 {[%emt 0:01:51]} Rg7 {[%emt 0:00:59]} 40. Rh8+ {[%emt 0:00:09]} Rg8 {[%emt 0:01:06]} 41. Rh7 {[%emt 0:31:23]} Nf5 {[%emt 0:05:24]} 42. Ra1 {[%emt 0:00:00]} Ke8 {[%emt 0:06:13]} 43. Nc5 {[%emt 0:00:00]} Rf8 {[%emt 0:03:42]} 44. Ne4 {[%emt 0:00:00]} Kd7 {[%emt 0:00:28]} 45. Nf6+ {[%emt 0:00:00]} Kc6 {[%emt 0:00:40]} 46. Rc1+ {[%emt 0:00:00]} Kb5 {[%emt 0:00:20]} 47. Nd7 {[%emt 0:00:00]} Rh8 {[%emt 0:00:54]} 48. Rxf7 {[%emt 0:00:00]} Rbg8 {[%emt 0:01:02]} 49. Nf6 {[%emt 0:00:00]} Ng3+ {[%emt 0:00:26]} 50. Kg2 {[%emt 0:00:00]} Ne2+ {[%emt 0:00:06]} 0-1